Workbook

Sheet Sheet1
B1: 实际位置 mm | C1: 上报调度/10 cm | D1: 偏移后的数据 | E1: 界面上显示
A2: 弯道码值[0] | B2: 0 | C2: 0
A3: Start | B3: 13162 | C3: =B3/10 -> 1316.2 | D3: =C3-1316 -> 0.2
A4: End | B4: 29176 | C4: =B4/10 -> 2917.6 | D4: =C4-1316 -> 1601.6
A5: 弯道码值[1] | B5: 0 | C5: 0
A6: Start | B6: 107856 | C6: 10785.6 | D6: =C6-1316 -> 9469.6 | E6: left：40
A7: End | B7: 122000 | C7: 12200 | D7: =C7-1316 -> 10884 | F7: 最大 23670
C8: 0 | F8: 0点在22134和22302之间，顺时针增大
A9: 维修区码值 > | B9: 186600 | C9: 18660 | D9: 18660 | F9: 都加1316
C10: 0
A11: 输送22302 | B11: 9567 | C11: 956.7 | D11: =C11+18657-C3 -> 18297.5
A12: 输送22311 | B12: 13162 | C12: 1316.2 | D12: =C12+18657-C3 -> 18657 | E12: left：1095
A13: 输送22313 | B13: 31080 | C13: 3108 | D13: =C13-C3 -> 1791.8 | E13: left：1095。top: 492
A14: 输送22312 | B14: 34556 | C14: 3455.6 | D14: =C14-C3 -> 2139.4
A15: 维修站22000 | B15: 41330 | C15: 4133 | D15: =C15-C5 -> 4133
A16: 输送22124 | B16: 157371 | C16: 15737.1 | D16: =C16-C3 -> 14420.9 | E16: left：615。top: 393
A17: 输送22126 | B17: 160380 | C17: 16038 | D17: =C17-C3 -> 14721.8
A18: 输送22128 | B18: 162229 | C18: 16222.9 | D18: =C18-C3 -> 14906.7
A19: 输送22130 | B19: 165205 | C19: 16520.5 | D19: =C19-C3 -> 15204.3
A20: 输送22132 | B20: 167746 | C20: 16774.6 | D20: =C20-C3 -> 15458.4
A21: 输送22134 | B21: 172398 | C21: 17239.8 | D21: =C21-C3 -> 15923.6 | E21: left：865
F23: 1626017387

Sheet Sheet2

Sheet Sheet3
